[Event "XV South American-ch Open U20 2019"]
[Site "Asuncion"]
[Date "2019.05.13"]
[Round "4.5"]
[White "Vazquez, Facundo"]
[Black "Benitez Galeano, Alejandro"]
[Result "1/2-1/2"]
[ECO "E69"]
[WhiteElo "2086"]
[BlackElo "2052"]
[Annotator "NA RC"]
[PlyCount "105"]
[EventDate "2019.05.11"]
[EventType "swiss"]
[EventCountry "PAR"]
[SourceTitle "playchess.com"]
[Source "ChessBase"]
[SourceQuality "1"]
[TimeControl "5400+30"]

{[%evp 21,105,14,31,32767,52,37,53,54,73,70,66,78,93,32767,32767,32767,85,103,101,32767,119,96,132,129,131,138,124,109,115,67,68,-32,-24,-28,-20,-62,-60,-67,32767,-111,-76,-93,-106,-104,32767,-121,-78,-250,-248,-239,-181,32767,-23,-39,68,90,282,24,27,0,25,26,14,-27,32767,8,0,0,0,0,0,0,0,0,0,0,0,0,0,0,0,0,0,0,0,0]} 1. d4 {[%emt 0:00:30]} Nf6 {[%emt 0:08:30]} 2. c4 {[%emt 0:00:30]} g6 {[%emt 0:01:30]} 3. g3 {[%emt 0:00:30]} Bg7 {[%emt 0:00:30]} 4. Bg2 {[%emt 0:00:30]} O-O {[%emt 0:00:30]} 5. Nc3 {[%emt 0:00:30]} d6 {[%emt 0:00:30]} 6. Nf3 {[%emt 0:00:30]} Nbd7 {[%emt 0:00:30]} 7. O-O {[%emt 0:00:30]} e5 {[%emt 0:00:30]} 8. e4 {[%emt 0:00:30]} exd4 {[%emt 0:00:30]} 9. Nxd4 {[%emt 0:00:30]} Re8 {[%emt 0:00:30]} 10. h3 {[%emt 0:00:30]} Nc5 {[%emt 0:01:30]} 11. Re1 {[%emt 0:00:30]} c6 {[%emt 0:04:30]} 12. Qc2 {[%emt 0:03:30]} a5 {[%emt 0:02:30]} 13. Be3 {[%emt 0:01:30]} Qc7 {[%emt 0:05:30]} 14. Rad1 {[%emt 0:02:30]} Be6 {[%emt 0:02:30]} 15. b3 {[%emt 0:12:30]} Rad8 {[%emt 0:02:30]} 16. a3 {[%emt 0:02:30]} Qe7 {[%emt 0:16:30]} 17. f4 {[%emt 0:04:30]} Bc8 {[%emt 0:05:30]} 18. Bf2 {[%emt 0:01:30] E69: King's Indian: Fianchetto: 6...Nbd7 7 0-0 e5 8 e4 c6 9 h3} h5 $146 {[%emt 0:02:30]} ({Predecessor:} 18... Nfd7 19. Re2 Qf6 20. Red2 h5 21. Nde2 Bf8 22. b4 {½-½ (24) Neckar,L (2425)-Pekarek,A (2335) Prague 1983}) 19. b4 {[%emt 0:07:30]} axb4 {[%emt 0:00:30]} 20. axb4 {[%emt 0:00:30]} Ne6 {[%emt 0:01:30]} 21. Nf3 {[%emt 0:09:30]} Nd7 {[%emt 0:01:30]} 22. Nd5 {[%emt 0:08:30]} Qf8 {[%emt 0:02:30]} 23. Nb6 {[%emt 0:04:30]} Qe7 {[%emt 0:02:30]} 24. Nxc8 {[%emt 0:01:30]} Rxc8 {[%emt 0:00:00]} 25. Qd2 {[%emt 0:00:30]} Rcd8 {[%emt 0:03:00]} 26. g4 {[%emt 0:02:30]} (26. b5 $16) 26... hxg4 {[%emt 0:02:30]} 27. hxg4 {[%emt 0:00:30]} g5 $1 {[%emt 0:01:30]} 28. Nxg5 {[%emt 0:09:30]} Nxg5 {[%emt 0:00:30]} 29. fxg5 {[%emt 0:00:00]} Ne5 {[%emt 0:00:30]} 30. Bh4 {[%emt 0:02:00]} Rd7 {[%emt 0:04:30]} ({Worse is} 30... Nxg4 31. Qf4 $16) 31. Qe2 {[%emt 0:04:30]} Ra8 {[%emt 0:03:30]} 32. Kh1 {[%emt 0:04:44]} Ng6 {[%emt 0:04:30]} 33. Qf2 {[%emt 0:02:58]} Qe6 {[%emt 0:00:30]} 34. Bf3 $2 {[%emt 0:01:44]} (34. Bg3 $17) 34... Qxc4 {[%emt 0:01:01]} 35. Bg3 {[%emt 0:00:58]} Qxb4 {[%emt 0:01:27]} 36. e5 {[%emt 0:00:13]} Re8 {[%emt 0:06:43]} (36... d5 $19 37. e6 Re7) 37. exd6 {[%emt 0:01:28]} Red8 {[%emt 0:01:07]} ({Black should try} 37... Be5 $1 $15) 38. Be4 {[%emt 0:01:27]} Ne5 $2 {[%emt 0:03:35] [#]} (38... Be5 $16) 39. Rb1 $2 {[%emt 0:03:18]} (39. Qh2 $1 $18 Ng6 40. Bf5) 39... Qxd6 {[%emt 0:00:46]} 40. Qh2 {[%emt 0:00:26]} Re8 {[%emt 0:01:40]} 41. Qh7+ {[%emt 0:02:21]} Kf8 {[%emt 0:00:01]} 42. g6 {[%emt 0:00:38]} Qc5 43. Rf1 {[%emt 0:01:07]} Qe3 44. gxf7 Nxf7 45. Rxf7+ Rxf7 46. Bd6+ {[#]} Ree7 $1 47. Bxe7+ Rxe7 48. Qf5+ Kg8 49. Qh7+ Kf7 50. Qg6+ Kg8 51. Qh7+ Kf8 52. Qf5+ $1 Kg8 $11 53. Qh7+ 1/2-1/2

[Event "XV South American-ch Open U20 2019"]
[Site "Asuncion"]
[Date "2019.05.13"]
[Round "4.6"]
[White "Donoso Diaz, Sebastian"]
[Black "Mayeregger, Arnold"]
[Result "1-0"]
[ECO "E16"]
[WhiteElo "2251"]
[BlackElo "1913"]
[Annotator "ChessBase"]
[PlyCount "91"]
[EventDate "2019.05.11"]
[EventType "swiss"]
[EventCountry "PAR"]
[SourceTitle "playchess.com"]
[Source "ChessBase"]
[SourceQuality "1"]
[TimeControl "5400+30"]

1. d4 Nf6 2. c4 e6 3. Nf3 Bb4+ 4. Bd2 c5 5. g3 b6 6. Bxb4 cxb4 7. Bg2 Bb7 8. O-O O-O 9. a3 bxa3 10. Nxa3 d6 11. Nb5 a6 12. Nc3 Nbd7 13. d5 e5 14. Nd2 Ne8 15. e4 a5 16. Bh3 Nc5 17. Qe2 Bc8 18. Bxc8 Qxc8 19. f4 f6 20. Nb5 Qd8 21. b4 axb4 22. Na7 Nc7 23. Nc6 Qd7 24. Nxb4 Rxa1 25. Rxa1 Ra8 26. Rxa8+ Nxa8 27. Nc6 Nc7 28. Nb1 g6 29. fxe5 fxe5 30. Nc3 N7a6 31. Qb2 Nd3 32. Qxb6 Nac5 33. Qb8+ Kg7 34. Nd8 Qe7 35. Nd1 Nc1 36. Nf2 Ne2+ 37. Kg2 Nd4 38. Nc6 Nxc6 39. dxc6 Ne6 40. Qb7 Kf8 41. h4 Ke8 42. Qc8+ Kf7 43. Ng4 Qc7 44. Qb7 Ke8 45. Ne3 Kd8 46. Nd5 1-0

[Event "XV South American-ch Open U20 2019"]
[Site "Asuncion"]
[Date "2019.05.13"]
[Round "4.7"]
[White "Gimenez Aguirre, Alejo Ismael"]
[Black "Allo Collante, Enrique"]
[Result "1-0"]
[ECO "B12"]
[WhiteElo "2247"]
[BlackElo "1595"]
[Annotator "RC"]
[PlyCount "49"]
[EventDate "2019.05.11"]
[EventType "swiss"]
[EventCountry "PAR"]
[SourceTitle "playchess.com"]
[Source "ChessBase"]
[SourceQuality "1"]
[TimeControl "5400+30"]

1. e4 c6 2. d4 d5 3. e5 Bf5 4. Ne2 e6 5. c3 Nd7 6. Nf4 h6 7. Nd2 Ne7 8. b4 a5 9. a3 Nc8 10. Bb2 Ndb6 11. Rc1 axb4 12. cxb4 Na4 13. Ba1 Be7 14. Nb3 Bg5 15. Qd2 Na7 16. Na5 Qe7 17. h4 Bxf4 18. Qxf4 Rc8 19. g4 Bg6 20. Rh3 f6 21. h5 Bh7 22. exf6 gxf6 23. Qxh6 b6 24. Nxc6 Nxc6 25. Rxc6 1-0

[Event "XV South American-ch Open U20 2019"]
[Site "Asuncion"]
[Date "2019.05.13"]
[Round "4.10"]
[White "Gomez Barrera, Gonzalo Andres"]
[Black "Menacho Admen, Victor Gabriel"]
[Result "1-0"]
[ECO "C50"]
[WhiteElo "2058"]
[BlackElo "1103"]
[Annotator "NA RC"]
[PlyCount "29"]
[EventDate "2019.05.11"]
[EventType "swiss"]
[EventCountry "PAR"]
[SourceTitle "playchess.com"]
[Source "ChessBase"]
[SourceQuality "1"]
[TimeControl "5400+30"]

1. e4 e5 2. Bc4 Nc6 3. Nf3 d6 4. d4 Bg4 5. h3 Bh5 6. d5 Bxf3 7. Qxf3 Nd4 8. Qd3 a6 9. c3 $18 b5 10. cxd4 bxc4 11. Qxc4 g6 12. dxe5 dxe5 13. Qc6+ Ke7 14. Bg5+ f6 15. Qe6# 1-0

[Event "XV South American-ch Open U20 2019"]
[Site "Asuncion"]
[Date "2019.05.13"]
[Round "4.11"]
[White "Melian, Juan Sebastian"]
[Black "Cosme Contreras, Trilce"]
[Result "*"]
[ECO "A48"]
[WhiteElo "1786"]
[BlackElo "2051"]
[Annotator "NA RC"]
[PlyCount "23"]
[EventDate "2019.05.11"]
[EventType "swiss"]
[EventCountry "PAR"]
[SourceTitle "playchess.com"]
[Source "ChessBase"]
[SourceQuality "1"]
[TimeControl "5400+30"]

1. d4 Nf6 2. Nf3 g6 3. Bg5 Bg7 4. Nbd2 O-O 5. c3 d6 6. e4 c5 7. dxc5 dxc5 8. Bc4 Nc6 9. Qe2 Qc7 10. O-O Rb8 11. a4 a6 $14 (11... b6 $11) 12. Rfe1 *

[Event "XV South American-ch Open U20 2019"]
[Site "Asuncion"]
[Date "2019.05.13"]
[Round "4.11"]
[White "Melian, Juan Sebastian"]
[Black "Cosme Contreras, Trilce"]
[Result "1-0"]
[ECO "A48"]
[WhiteElo "1786"]
[BlackElo "2051"]
[Annotator "NA RC"]
[PlyCount "39"]
[EventDate "2019.05.11"]
[EventType "swiss"]
[EventCountry "PAR"]
[SourceTitle "playchess.com"]
[Source "ChessBase"]
[SourceQuality "1"]
[TimeControl "5400+30"]

1. d4 Nf6 2. Nf3 g6 3. Bg5 Bg7 4. Nbd2 O-O 5. c3 d6 6. e4 c5 7. dxc5 dxc5 8. Bc4 Nc6 9. Qc2 Qc7 10. O-O Rb8 11. a4 a6 12. Rfe1 b5 13. axb5 axb5 14. Bf1 e5 15. Be3 Nd7 16. Nb3 Nd8 17. c4 $11 b4 $1 18. Bd3 h6 19. Nfd2 Ne6 20. f3 1-0

[Event "XV South American-ch Open U20 2019"]
[Site "Asuncion"]
[Date "2019.05.13"]
[Round "4.12"]
[White "Orrego Palermo, Marcelo"]
[Black "Avalos Sanabria, Augusto Alfredo"]
[Result "1-0"]
[ECO "D10"]
[WhiteElo "1632"]
[BlackElo "1474"]
[Annotator "NA RC"]
[PlyCount "40"]
[EventDate "2019.05.11"]
[EventType "swiss"]
[EventCountry "PAR"]
[SourceTitle "playchess.com"]
[Source "ChessBase"]
[SourceQuality "1"]
[TimeControl "5400+30"]

1. d4 d5 2. c4 c6 3. cxd5 cxd5 4. Bf4 Nf6 5. Nc3 Bf5 6. e3 e6 7. Qb3 b6 8. Nb5 Na6 9. Qa4 Nb4 10. Nd6+ Ke7 11. Qxb4 Kd7 12. Bb5+ Kc7 13. Rc1+ Kb8 14. Nxf7+ Kb7 15. Nxd8+ Rxd8 16. Bc6+ Kc8 17. Bb5+ Kb7 18. Rc7+ Ka8 19. Bc6+ Kb8 20. Re7+ Kc8 1-0

[Event "XV South American-ch Open U20 2019"]
[Site "Asuncion"]
[Date "2019.05.14"]
[Round "5.2"]
[White "Zapata Charles, Santiago"]
[Black "Heinechen, Juan"]
[Result "1-0"]
[ECO "C54"]
[WhiteElo "2322"]
[BlackElo "2123"]
[Annotator "NA"]
[PlyCount "47"]
[EventDate "2019.05.11"]
[EventType "swiss"]
[EventCountry "PAR"]
[SourceTitle "playchess.com"]
[Source "ChessBase"]
[SourceQuality "1"]
[TimeControl "5400+30"]

{[%evp 9,44,10,32767,32767,32767,22,32767,16,22,19,19,32767,32767,0,32767,32767,32767,32767,34,40,64,70,59,32767,93,32767,32767,32767,32767,32767,351,337,32767,32767,856,914,801]} 1. e4 {[%emt 0:01:30]} e5 {[%emt 0:00:30]} 2. Bc4 {[%emt 0:00:30]} Nf6 {[%emt 0:00:30]} 3. d3 {[%emt 0:00:30]} Bc5 {[%emt 0:00:00]} 4. Nf3 {[%emt 0:00:00]} Nc6 {[%emt 0:00:00]} 5. O-O {[%emt 0:00:00]} O-O {[%emt 0:00:30]} 6. Nbd2 {[%emt 0:02:30]} a6 {[%emt 0:02:30]} 7. Bb3 {[%emt 0:02:30]} d6 {[%emt 0:01:30]} 8. c3 {[%emt 0:00:30]} Ba7 {[%emt 0:01:30]} 9. h3 {[%emt 0:00:30]} (9. Re1) 9... h6 {[%emt 0:00:30]} 10. Re1 {[%emt 0:00:30]} Be6 {[%emt 0:00:30]} 11. Bc2 {[%emt 0:00:30]} Ne7 {[%emt 0:16:30]} 12. Nf1 {[%emt 0:01:30]} Ng6 {[%emt 0:01:30]} 13. d4 {[%emt 0:01:30]} c6 {[%emt 0:10:30]} 14. Ng3 {[%emt 0:00:30]} Qc7 {[%emt 0:02:30]} 15. Be3 {[%emt 0:00:30]} Rfe8 16. Qc1 b5 17. Nf5 Bxf5 18. exf5 Nf8 19. Bxh6 gxh6 $2 (19... N8h7 $16) 20. Qxh6 N8h7 21. Ng5 exd4 $2 (21... d5 22. Nxh7 Nxh7) 22. Nxh7 $18 Nxh7 23. f6 Nxf6 24. Qg5+ 1-0

[Event "XV South American-ch Open U20 2019"]
[Site "Asuncion"]
[Date "2019.05.14"]
[Round "5.3"]
[White "Cantero, Rodolfo"]
[Black "Vazquez, Facundo"]
[Result "1-0"]
[ECO "A26"]
[WhiteElo "2059"]
[BlackElo "2086"]
[Annotator "NA RC"]
[PlyCount "87"]
[EventDate "2019.05.11"]
[EventType "swiss"]
[EventCountry "PAR"]
[SourceTitle "playchess.com"]
[Source "ChessBase"]
[SourceQuality "1"]
[TimeControl "5400+30"]

1. g3 {[%emt 0:00:30]} Nf6 {[%emt 0:00:30]} 2. Bg2 {[%emt 0:00:00]} g6 {[%emt 0:00:00]} 3. c4 {[%emt 0:00:00]} Bg7 {[%emt 0:00:00]} 4. Nc3 {[%emt 0:00:30]} O-O {[%emt 0:00:30]} 5. d3 {[%emt 0:00:00]} e5 {[%emt 0:00:30]} 6. e4 {[%emt 0:00:00]} d6 {[%emt 0:00:30]} 7. Nge2 {[%emt 0:00:00]} Nc6 {[%emt 0:00:30]} 8. O-O {[%emt 0:00:00]} Nd7 {[%emt 0:01:30]} 9. f4 {[%emt 0:01:30]} exf4 {[%emt 0:02:30]} 10. Bxf4 {[%emt 0:00:30]} Nce5 {[%emt 0:03:30]} 11. b3 {[%emt 0:00:30]} g5 {[%emt 0:02:30]} (11... c5 $14) 12. Bc1 {[%emt 0:02:30]} h6 {[%emt 0:04:30]} 13. d4 {[%emt 0:00:30]} Ng6 {[%emt 0:01:30]} 14. Bb2 {[%emt 0:01:30]} Re8 {[%emt 0:03:30]} 15. Qd2 {[%emt 0:01:30]} c6 {[%emt 0:03:30]} 16. Rf2 {[%emt 0:00:30]} Nf6 {[%emt 0:10:30]} 17. Raf1 {[%emt 0:52:30]} Nh8 {[%emt 0:42:30]} {Better is} 18. h3 $18 {[%emt 0:02:30]} (18. Qd3) 18... Rb8 {[%emt 0:01:09]} 19. Qd3 $16 {[%emt 0:00:30]} a6 {[%emt 0:00:34]} 20. a4 {[%emt 0:00:30]} b5 {[%emt 0:00:46]} 21. axb5 {[%emt 0:00:30]} axb5 {[%emt 0:00:55]} 22. cxb5 {[%emt 0:00:30]} cxb5 {[%emt 0:00:33]} 23. b4 {[%emt 0:00:30]} Bb7 {[%emt 0:00:37]} 24. d5 {[%emt 0:00:30]} Nd7 {[%emt 0:00:06]} 25. Nd4 {[%emt 0:00:30]} Bxd4 {[%emt 0:00:30]} 26. Qxd4 {[%emt 0:00:30]} Ne5 {[%emt 0:00:30]} 27. Nd1 {[%emt 0:00:30]} Bc8 {[%emt 0:00:30]} 28. Kh2 {[%emt 0:01:30]} Rb7 {[%emt 0:00:30]} 29. Ne3 {[%emt 0:00:30]} Nhg6 {[%emt 0:00:30]} 30. Nf5 {[%emt 0:00:30]} Bxf5 {[%emt 0:00:30]} 31. exf5 {[%emt 0:00:30]} Nf8 {[%emt 0:00:30]} 32. f6 {[%emt 0:00:30]} Nc4 {[%emt 0:00:30]} 33. Bc1 {[%emt 0:00:30]} Re5 {[%emt 0:00:30]} 34. Rf5 {[%emt 0:00:30]} Ng6 {[%emt 0:00:30]} 35. Qg4 {[%emt 0:00:30]} Qf8 {[%emt 0:00:40]} 36. h4 {[%emt 0:00:30]} gxh4 {[%emt 0:00:33]} 37. gxh4 {[%emt 0:00:30]} Kh8 {[%emt 0:00:36]} 38. h5 {[%emt 0:00:30]} Rxf5 {[%emt 0:00:31]} 39. Qxf5 {[%emt 0:00:30]} Nh4 {[%emt 0:00:24]} 40. Qg4 {[%emt 0:00:30]} Nxg2 {[%emt 0:00:30]} 41. Qxg2 {[%emt 0:00:30]} Ne5 {[%emt 0:00:30]} 42. Rg1 {[%emt 0:00:30]} Rc7 {[%emt 0:00:30]} 43. Bxh6 {[%emt 0:00:30]} Nf3+ {[%emt 0:00:25]} 44. Kh1 {[%emt 0:00:30]} 1-0

[Event "XV South American-ch Open U20 2019"]
[Site "Asuncion"]
[Date "2019.05.14"]
[Round "5.9"]
[White "Mayeregger, Arnold"]
[Black "Ayala Ruiz, Miguel Angel"]
[Result "1-0"]
[ECO "D05"]
[WhiteElo "1913"]
[BlackElo "1444"]
[Annotator "NA"]
[PlyCount "57"]
[EventDate "2019.05.11"]
[EventType "swiss"]
[EventCountry "PAR"]
[SourceTitle "playchess.com"]
[Source "ChessBase"]
[SourceQuality "1"]
[TimeControl "5400+30"]

1. Nc3 Nc6 2. Nb1 Nb8 3. Nf3 Nf6 4. Ng1 Ng8 5. d4 Nf6 6. Nf3 e6 7. e3 c5 8. Bd3 d5 9. b3 Nc6 10. O-O cxd4 11. exd4 Be7 12. Bb2 Nb4 13. Be2 O-O 14. Nbd2 Bd7 15. a3 Nc6 16. Bd3 Bd6 17. Ne5 Qe7 18. f4 Kh8 19. Rf3 h6 20. Rh3 Kg8 21. g4 Ne4 22. Nxe4 dxe4 23. Bxe4 Bxe5 24. dxe5 g5 25. Rxh6 gxf4 26. Qf3 Qc5+ 27. Kg2 Nxe5 28. Qxf4 f5 29. Bxe5 1-0

[Event "XV South American-ch Open U20 2019"]
[Site "Asuncion"]
[Date "2019.05.14"]
[Round "5.10"]
[White "Allo Collante, Enrique"]
[Black "Araoz Andrade, Ivan Alexander"]
[Result "0-1"]
[ECO "A29"]
[WhiteElo "1595"]
[BlackElo "1843"]
[Annotator "NA RC"]
[PlyCount "97"]
[EventDate "2019.05.11"]
[EventType "swiss"]
[EventCountry "PAR"]
[SourceTitle "playchess.com"]
[Source "ChessBase"]
[SourceQuality "1"]
[TimeControl "5400+30"]

1. c4 e5 2. Nc3 Nf6 3. g3 Nc6 4. Bg2 g6 5. Nf3 Bg7 6. O-O O-O 7. Ne1 {A29: English Opening: Four Knights Variation with 4 g3} (7. d4 d6 8. dxe5 dxe5 9. Bg5 Be6 10. Qa4 Qb8 11. Bxf6 Bxf6 12. Nd2 Nd8 13. Nde4 Bg7 14. Nc5 c6 15. Rad1 Qc7 16. N3e4 Bc8 17. Rd2 Ne6 18. Nxe6 Bxe6 {½-½ (31) Romanov,E (2576)-Demchenko,A (2661) Fagernes 2019}) 7... d6 8. Nc2 Be6 9. Ne3 Rb8 $146 ({Predecessor:} 9... Qd7 10. Rb1 Bh3 11. d3 Nd4 12. Ned5 Bxg2 13. Kxg2 Nh5 14. b4 c6 {0-1 (31) Vasko,I (1906)-Sandor,J (2015) Hungary 2015}) 10. d3 Ne7 11. Ne4 c6 12. Ng5 Bc8 13. Nf3 Nh5 14. d4 e4 15. Nd2 d5 16. Nc2 Be6 17. f4 Qd7 18. e3 Nf6 19. b3 Rfe8 20. Bb2 h5 21. Rc1 Nf5 22. Qe1 Bf8 23. h3 Be7 24. Qf2 Kg7 (24... Nh6 $19 {has better winning chances.} 25. h4 Bg4) 25. Rfd1 $19 (25. Nxe4 $17 {might work better.} dxe4 {[#]} 26. d5 $1 {[%mdl 512]} cxd5 27. cxd5 Qxd5 28. g4) 25... Nh6 26. cxd5 cxd5 27. Qf1 h4 28. g4 Nhxg4 29. hxg4 Bxg4 30. Qf2 h3 31. Bf1 Bxd1 32. Ne1 Bg4 33. Nb1 Bf5 34. Nc3 a6 35. Be2 Rh8 36. Rc2 Rbc8 37. Bd1 Ng4 38. Bxg4 Bxg4 39. Kh2 b5 40. Qg3 Bh4 41. Qg1 Bxe1 42. Qxe1 b4 43. Rf2 bxc3 44. Bxc3 Bf3 45. Rf1 Qb5 46. Rf2 Qd3 47. Bb4 Rc2 48. Rd2 Rxd2+ 49. Bxd2 0-1

[Event "XV South American-ch Open U20 2019"]
[Site "Asuncion"]
[Date "2019.05.14"]
[Round "5.11"]
[White "Menacho Admen, Victor Gabriel"]
[Black "Orrego Palermo, Marcelo"]
[Result "0-1"]
[ECO "A00"]
[WhiteElo "1103"]
[BlackElo "1632"]
[Annotator "NA RC"]
[PlyCount "44"]
[EventDate "2019.05.11"]
[EventType "swiss"]
[EventCountry "PAR"]
[SourceTitle "playchess.com"]
[Source "ChessBase"]
[SourceQuality "1"]
[TimeControl "5400+30"]

1. e4 d5 2. Nc3 d4 3. Na4 e5 4. b3 Nf6 5. Nf3 Bd6 6. c3 dxc3 7. Nxc3 O-O 8. Bc4 a6 9. a4 Nbd7 10. a5 Bb4 11. Bb2 c6 12. Ba3 Bxa3 13. Rxa3 Nc5 14. Nxe5 Qd6 15. d4 Ncxe4 16. Nxe4 Qxa3 17. Nxf6+ gxf6 18. Nxf7 Qxa5+ 19. Ke2 Rxf7 20. Bxf7+ Kxf7 21. Ke3 Bd7 22. Qh5+ Qxh5 0-1

[Event "XV South American-ch Open U20 2019"]
[Site "Asuncion"]
[Date "2019.05.14"]
[Round "5.12"]
[White "Cosme Contreras, Trilce"]
[Black "Avalos Sanabria, Augusto Alfredo"]
[Result "1-0"]
[ECO "D12"]
[WhiteElo "2051"]
[BlackElo "1474"]
[Annotator "NA RC"]
[PlyCount "83"]
[EventDate "2019.05.11"]
[EventType "swiss"]
[EventCountry "PAR"]
[SourceTitle "playchess.com"]
[Source "ChessBase"]
[SourceQuality "1"]
[TimeControl "5400+30"]

1. d4 d5 2. c4 c6 3. Nf3 Nf6 4. Nc3 Bf5 5. e3 Nbd7 6. Be2 e6 7. O-O Bd6 8. h3 h6 9. a3 O-O 10. b4 Bc7 11. Bb2 a5 12. c5 Ne4 13. Nxe4 dxe4 14. Ne5 Nxe5 15. dxe5 Qg5 16. Kh1 Bg6 17. Bc4 Bxe5 18. Bxe5 Qxe5 19. Rb1 axb4 20. axb4 Rfd8 21. Qc2 Ra3 22. Rb3 Rxb3 23. Bxb3 Ra8 24. Rd1 Ra1 25. Rxa1 Qxa1+ 26. Kh2 Qe5+ 27. Kg1 f5 28. Qd2 Kh7 29. Qd6 Qa1+ 30. Kh2 Qa3 31. Qxe6 h5 32. Qg8+ Kh6 33. h4 Bh7 34. Qe6+ Bg6 35. Qg8 Qxb4 36. Qh8+ Bh7 37. Bg8 Kg6 38. Bxh7+ Kf6 39. Qf8+ Ke6 40. Qxf5+ Ke7 41. Qxe4+ Kf8 42. Bg6 1-0

[Event "XV South American-ch Open U20 2019"]
[Site "Asuncion"]
[Date "2019.05.14"]
[Round "6.7"]
[White "Vazquez, Facundo"]
[Black "Mayeregger, Arnold"]
[Result "1/2-1/2"]
[ECO "D74"]
[WhiteElo "2086"]
[BlackElo "1913"]
[Annotator "NA RC"]
[PlyCount "49"]
[EventDate "2019.05.11"]
[EventType "swiss"]
[EventCountry "PAR"]
[SourceTitle "playchess.com"]
[Source "ChessBase"]
[SourceQuality "1"]
[TimeControl "5400+30"]

1. d4 Nf6 2. c4 g6 3. Nc3 Bg7 4. g3 O-O 5. Nf3 d5 6. Bg2 dxc4 7. Ne5 c5 8. dxc5 {D74: Fianchetto Grünfeld: Main Line (5 Nf3 0-0 6 cxd5 Nxd5 7 0-0)} Qa5 (8... Qc7 9. Nxc4 Qxc5 10. Qb3 (10. Nd2 Rd8 11. Qa4 Bd7 12. Qc4 Qxc4 13. Nxc4 Bc6 14. e4 b6 15. O-O Na6 {½-½ (41) Zuluaga Mancilla,C (2386)-Pinero,C (2168) Barquisimeto 2013}) 10... Nc6 11. Be3 Nd4 12. Bxd4 Qxd4 13. Na5 Qe5 14. Qb4 Qh5 15. h4 Be6 {½-½ (31) Erdos,V (2613)-Nezad,H (2422) Caleta 2016}) 9. Be3 $146 ({Predecessor:} 9. Nxc4) 9... Qa6 10. Qa4 Qe6 11. Nxc4 Bd7 12. Qb3 Bc6 13. O-O Bxg2 14. Kxg2 Qc6+ 15. Kg1 Nbd7 16. Na5 Qc7 17. Qa3 ({But not} 17. Nxb7 Rfb8 $11) 17... b6 18. Nb3 bxc5 19. Nxc5 Nb6 20. N5a4 Nc8 ({Better is} 20... Qe5) 21. Rac1 Qd7 22. Rfd1 ({White should try} 22. Bc5 $16) 22... Qh3 $1 23. f3 Nd6 24. b3 Nf5 25. Bd2 $19 (25. Rd3 $11 {and White is okay.}) 1/2-1/2

[Event "XV South American-ch Open U20 2019"]
[Site "Asuncion"]
[Date "2019.05.14"]
[Round "6.8"]
[White "Araoz Andrade, Ivan Alexander"]
[Black "Suarez, Pedro"]
[Result "0-1"]
[ECO "C06"]
[WhiteElo "1843"]
[BlackElo "2077"]
[Annotator "NA RC"]
[PlyCount "54"]
[EventDate "2019.05.11"]
[EventType "swiss"]
[EventCountry "PAR"]
[SourceTitle "playchess.com"]
[Source "ChessBase"]
[SourceQuality "1"]
[TimeControl "5400+30"]

1. e4 e6 2. d4 d5 3. Nd2 Nf6 4. e5 Nfd7 5. Bd3 c5 6. c3 Nc6 7. Ne2 cxd4 8. cxd4 f6 9. exf6 Qxf6 10. Nf3 h6 11. O-O Bd6 $1 12. Bd2 {C06: French Tarrasch: 3...Nf6 4 e5 Nfd7 5 Bd3 main lines} (12. Ng3 O-O 13. Bc2 Rf7 14. Re1 Nf8 15. Nh5 Qd8 16. Ne5 Bxe5 17. dxe5 Qb6 18. Nf4 Bd7 19. Nd3 Rc8 20. Be3 Qd8 {½-½ (72) Svane,R (2570)-Sethuraman,S (2623) Moscow 2017}) 12... O-O 13. Bc3 Rf7 14. Ng3 Nf8 15. Rc1 $146 ({Predecessor:} 15. Qe2 Bd7 16. Rae1 Be8 17. Ne5 Rc7 18. Qg4 a6 19. f4 b5 20. Nxc6 Rxc6 {0-1 (57) Urhegyi,M (2249)-Stockova,Z (2293) Slovakia 2018}) 15... a6 16. a3 Bd7 17. Qe2 Be8 18. b4 Rc7 19. Ne5 Rac8 20. Bb2 {[#]} Nxd4 $1 21. Bxd4 Rxc1 22. Nc6 Rxf1+ $19 23. Nxf1 Qh4 24. g3 Qh5 25. g4 Qh3 26. Na5 Rc1 27. f3 Rxf1+ 0-1

[Event "XV South American-ch Open U20 2019"]
[Site "Asuncion"]
[Date "2019.05.14"]
[Round "6.9"]
[White "Melian, Juan Sebastian"]
[Black "Gomez Barrera, Gonzalo Andres"]
[Result "0-1"]
[ECO "D13"]
[WhiteElo "1786"]
[BlackElo "2058"]
[Annotator "NA RC"]
[PlyCount "74"]
[EventDate "2019.05.11"]
[EventType "swiss"]
[EventCountry "PAR"]
[SourceTitle "playchess.com"]
[Source "ChessBase"]
[SourceQuality "1"]
[TimeControl "5400+30"]

1. d4 Nf6 2. Nf3 d5 3. Bg5 c5 4. c3 cxd4 5. cxd4 Ne4 6. Bf4 {D13: Slav Defence: Exchange variation without ...Bf5} Nc6 7. Nbd2 $146 ({Predecessor:} 7. Nc3 e6 8. Rc1 Qa5 9. Bd2 Nxd2 10. Qxd2 Bd6 11. e3 Bd7 12. Bd3 O-O 13. O-O Rfc8 14. e4 dxe4 15. Bxe4 Qh5 {1-0 (35) Matuszewski,M (2485)-Vovk,Y (2600) Poland 2017}) 7... Bf5 8. e3 e6 9. Be2 g5 10. Nxe4 $1 gxf4 11. Nc3 fxe3 12. fxe3 Bh6 13. Qd2 Rg8 14. Rg1 Be4 15. Rc1 Bxf3 16. Bxf3 Qh4+ 17. g3 Qg5 18. Ke2 (18. Kf2 $15) 18... O-O-O 19. b4 Kb8 20. Na4 e5 21. dxe5 Nxe5 22. Qd4 Rge8 23. Rc3 Nxf3 24. Kxf3 Bg7 25. Qf4+ Qxf4+ 26. gxf4 Bxc3 27. Nxc3 d4 28. Ne2 Rxe3+ 29. Kf2 Ra3 30. Nc1 d3 31. Rd1 d2 32. Nb3 Rxa2 33. Ke2 Ra3 34. Nxd2 $19 Rad3 35. h4 a6 36. h5 Rh3 37. Rg1 Rh2+ 0-1